[Event "6th Uppsala Young Champions 2019"]
[Site "Uppsala"]
[Date "2019.10.30"]
[Round "8.14"]
[White "Soderstrom, Adrian"]
[Black "Dingertz, Erik"]
[Result "1-0"]
[ECO "D38"]
[WhiteElo "1960"]
[BlackElo "1908"]
[Annotator "NA RC"]
[PlyCount "53"]
[EventDate "2019.10.25"]
[EventType "swiss"]
[EventCountry "SWE"]
[SourceTitle "playchess.com"]
[Source "ChessBase"]
[SourceQuality "1"]
[TimeControl "5400+30"]

1. d4 {[%emt 1:30:30]} Nf6 {[%emt 1:30:30]} 2. c4 {[%emt 0:00:30]} e6 {[%emt 0:00:30]} 3. Nf3 {[%emt 0:00:30]} d5 {[%emt 0:00:30]} 4. Nc3 {[%emt 0:00:30]} Bb4 {[%emt 0:00:30]} 5. Qb3 {[%emt 0:00:30]} c5 {[%emt 0:00:30]} 6. dxc5 {[%emt 0:00:30]} Nc6 {[%emt 0:00:30] D38: Queen's Gambit Declined: Ragozin Defence (4 Nf3 Bb4)} (6... Na6 7. a3 Bxc3+ 8. Qxc3 Nxc5 9. cxd5 Qxd5 10. Be3 Nce4 11. Qb4 a5 12. Qd4 O-O 13. Ne5 a4 14. Nd3 {0-1 (57) Navara,D (2739)-Vidit,S (2711) Prague 2019}) 7. Bg5 {[%emt 0:00:30]} Qa5 {[%emt 0:00:30]} 8. Bxf6 {[%emt 0:00:30]} gxf6 {[%emt 0:00:30]} 9. e3 {[%emt 0:00:30]} dxc4 {[%emt 0:00:30]} 10. Bxc4 {[%emt 0:00:30]} Qxc5 $146 {[%emt 0:00:30]} ({Predecessor:} 10... Rg8 11. O-O Bxc3 12. Qxc3 Qxc3 13. bxc3 Bd7 14. Rab1 Rc8 15. Rfd1 Nd8 16. Nd2 a6 17. Ne4 Ke7 18. Rxd7+ {1-0 (18) Arnold,F (2320)-Korsos,I (2165) Hungary 1996}) 11. Be2 {[%emt 0:00:30]} e5 {[%emt 0:00:30]} 12. O-O {[%emt 0:00:30]} Be6 {[%emt 0:00:30]} 13. Qa4 {[%emt 0:00:30]} Bxc3 {[%emt 0:00:30]} 14. bxc3 {[%emt 0:00:30]} Rg8 {[%emt 0:00:30]} 15. Rfd1 {[%emt 0:00:30]} Rg4 {[%emt 0:00:30]} 16. Qc2 {[%emt 0:00:30]} Ke7 {[%emt 0:00:30]} (16... f5 $16) 17. Rab1 {[%emt 0:00:30]} b6 {[%emt 0:00:30]} 18. Nd2 {[%emt 0:00:30]} Rag8 {[%emt 0:00:30]} 19. Bxg4 {[%emt 0:00:30]} Bxg4 {[%emt 0:00:30]} 20. Ne4 {[%emt 0:00:30]} Qc4 {[%emt 0:00:30]} 21. Nd6 $18 {[%emt 0:00:30]} Bxd1 {[%emt 0:00:30]} 22. Rxd1 {[%emt 0:00:30]} Qg4 {[%emt 0:00:30]} 23. Nf5+ {[%emt 0:00:30]} Ke8 {[%emt 0:00:30]} 24. g3 {[%emt 0:00:30]} e4 {[%emt 0:00:30]} 25. Nh6 {[%emt 0:00:30]} Qf3 {[%emt 0:00:30]} 26. Nxg8 {[%emt 0:00:30]} Ne5 {[%emt 0:00:30]} 27. Nxf6+ {[%emt 0:00:30]} 1-0

[Event "6th Uppsala Young Champions 2019"]
[Site "Uppsala"]
[Date "2019.10.30"]
[Round "8.15"]
[White "Mitra, Akash"]
[Black "Ostensson, Julia"]
[Result "1-0"]
[ECO "C44"]
[WhiteElo "1936"]
[BlackElo "1483"]
[Annotator "NA"]
[PlyCount "65"]
[EventDate "2019.10.25"]
[EventType "swiss"]
[EventCountry "SWE"]
[SourceTitle "playchess.com"]
[Source "ChessBase"]
[SourceQuality "1"]
[TimeControl "5400+30"]

1. e4 {[%emt 1:30:30]} e5 {[%emt 1:30:30]} 2. d4 {[%emt 0:00:30]} exd4 {[%emt 0:00:30]} 3. Nf3 {[%emt 0:00:30]} Nc6 {[%emt 0:00:30]} 4. Bc4 {[%emt 0:00:30]} Bc5 {[%emt 0:00:30]} 5. c3 {[%emt 0:00:30]} dxc3 {[%emt 0:00:30] [#]} 6. Bxf7+ $1 {[%emt 0:00:30] Decoy} Kxf7 {[%emt 0:00:30]} 7. Qd5+ {[%emt 0:00:30]} Kf8 {[%emt 0:00:30]} 8. Qxc5+ {[%emt 0:00:30]} Qe7 {[%emt 0:00:30]} 9. Qe3 {[%emt 0:00:30]} d6 {[%emt 0:00:30]} 10. Nxc3 {[%emt 0:00:30]} Nf6 {[%emt 0:00:30]} 11. h3 {[%emt 0:00:30]} Be6 {[%emt 0:00:30]} (11... Nb4 $11 {remains equal.} 12. Kd1 Be6) 12. O-O {[%emt 0:00:30]} Re8 {[%emt 0:00:30]} 13. b3 {[%emt 0:00:30]} Qd7 {[%emt 0:00:30]} 14. Qf4 $14 {[%emt 0:00:30]} Ne7 {[%emt 0:00:30]} 15. Ba3 {[%emt 0:00:30]} Ng6 {[%emt 0:00:30]} 16. Qg5 {[%emt 0:00:30]} Kf7 {[%emt 0:00:30]} 17. Rad1 {[%emt 0:00:30]} Qc6 {[%emt 0:00:30]} 18. Rc1 {[%emt 0:00:30]} Qa6 {[%emt 0:00:30]} 19. Bb2 {[%emt 0:00:30]} c6 {[%emt 0:00:30]} 20. Rcd1 {[%emt 0:00:30]} Rd8 {[%emt 0:00:30]} 21. e5 {[%emt 0:00:30]} dxe5 {[%emt 0:00:30]} 22. Nxe5+ {[%emt 0:00:30]} Nxe5 {[%emt 0:00:30]} 23. Qxe5 {[%emt 0:00:30]} Rxd1 {[%emt 0:00:30]} 24. Rxd1 {[%emt 0:00:30]} Rg8 {[%emt 0:00:30]} 25. Qc7+ {[%emt 0:00:30]} Kg6 {[%emt 0:00:30]} 26. Qe5 {[%emt 0:00:30]} Bc8 {[%emt 0:00:30]} 27. Ne4 {[%emt 0:00:30]} Qe2 {[%emt 0:00:30]} 28. Qg5+ {[%emt 0:00:30]} Kf7 {[%emt 0:00:30]} 29. Nd6+ {[%emt 0:00:30]} Ke6 {[%emt 0:00:30]} 30. Qf5+ {[%emt 0:00:30]} Ke7 {[%emt 0:00:30]} 31. Bxf6+ {[%emt 0:00:30]} gxf6 {[%emt 0:00:30]} 32. Nxc8+ {[%emt 0:00:30]} Rxc8 {[%emt 0:00:30]} 33. Qd7+ {[%emt 0:00:30]} 1-0

[Event "6th Uppsala Young Champions 2019"]
[Site "Uppsala"]
[Date "2019.10.30"]
[Round "8.16"]
[White "Skahlberg Bjerknes-Lima de Far, Warg"]
[Black "Ostlund, Joar"]
[Result "1/2-1/2"]
[ECO "D53"]
[WhiteElo "1637"]
[BlackElo "1955"]
[Annotator "NA"]
[PlyCount "121"]
[EventDate "2019.10.25"]
[EventType "swiss"]
[EventCountry "SWE"]
[SourceTitle "playchess.com"]
[Source "ChessBase"]
[SourceQuality "1"]
[TimeControl "5400+30"]

1. c4 {[%emt 1:30:30]} e6 {[%emt 1:30:30]} 2. Nc3 {[%emt 0:00:30]} d5 {[%emt 0:00:30]} 3. d4 {[%emt 0:00:30]} Nf6 {[%emt 0:00:30]} 4. Bg5 {[%emt 0:00:30]} Be7 {[%emt 0:00:30]} 5. e3 {[%emt 0:00:30]} c6 {[%emt 0:00:30]} 6. Nf3 {[%emt 0:00:30]} Nbd7 {[%emt 0:00:30]} 7. Bd3 {[%emt 0:00:30]} dxc4 {[%emt 0:00:30]} 8. Bxc4 {[%emt 0:00:30]} b5 {[%emt 0:00:30]} 9. Bd3 {[%emt 0:00:30]} a6 {[%emt 0:00:30]} 10. Qc2 {[%emt 0:00:30]} c5 {[%emt 0:00:30]} 11. Bxf6 {[%emt 0:00:30]} gxf6 {[%emt 0:00:30]} 12. d5 {[%emt 0:00:30]} f5 {[%emt 0:00:30]} 13. Rd1 {[%emt 0:00:30]} Bb7 {[%emt 0:00:30]} 14. Be2 $11 {[%emt 0:00:30]} ({White should try} 14. a4 $14) 14... Qb6 {[%emt 0:00:30]} 15. O-O {[%emt 0:00:30]} Rd8 {[%emt 0:00:30]} 16. Rd2 {[%emt 0:00:30]} O-O {[%emt 0:00:30]} 17. Rfd1 {[%emt 0:00:30]} Nf6 {[%emt 0:00:30]} 18. dxe6 {[%emt 0:00:30]} fxe6 {[%emt 0:00:30]} 19. Ne5 {[%emt 0:00:30]} Bd6 {[%emt 0:00:30]} 20. Nf3 {[%emt 0:00:30]} Rd7 {[%emt 0:00:30]} 21. Qb3 {[%emt 0:00:30]} c4 {[%emt 0:00:30]} 22. Bxc4 {[%emt 0:00:30]} Kg7 {[%emt 0:00:30]} 23. Bxe6 {[%emt 0:00:30]} Rdd8 {[%emt 0:00:30]} 24. Bxf5 {[%emt 0:00:30]} Bxf3 {[%emt 0:00:30]} 25. gxf3 {[%emt 0:00:30]} Qc5 {[%emt 0:00:30]} 26. Nd5 {[%emt 0:00:30]} Kh8 {[%emt 0:00:30]} 27. Nxf6 {[%emt 0:00:30]} Rxf6 {[%emt 0:00:30]} 28. Qc3 {[%emt 0:00:30]} Qxf5 {[%emt 0:00:30]} 29. Rxd6 {[%emt 0:00:30]} Rg8+ {[%emt 0:00:30]} 30. Kf1 {[%emt 0:00:30]} Qh3+ {[%emt 0:00:30]} 31. Ke1 {[%emt 0:00:30]} Rg1+ {[%emt 0:00:30]} 32. Kd2 {[%emt 0:00:30]} Rxd1+ {[%emt 0:00:30]} 33. Kxd1 {[%emt 0:00:30]} Qf1+ {[%emt 0:00:30]} 34. Kc2 {[%emt 0:00:30]} Qe2+ {[%emt 0:00:30]} 35. Rd2 {[%emt 0:00:30]} Qxf3 {[%emt 0:00:30]} 36. Qc8+ {[%emt 0:00:30]} Kg7 {[%emt 0:00:30]} 37. Qd7+ {[%emt 0:00:30]} Kh6 {[%emt 0:00:30]} 38. Qd5 {[%emt 0:00:30]} Qxd5 {[%emt 0:00:30]} 39. Rxd5 {[%emt 0:00:30]} Rxf2+ {[%emt 0:00:30]} 40. Rd2 {[%emt 0:00:30]} Rf6 {[%emt 0:00:30]} 41. Rg2 {[%emt 0:00:30]} Rd6 {[%emt 0:00:30]} 42. Rg8 {[%emt 0:00:30]} Kh5 {[%emt 0:00:30]} 43. e4 {[%emt 0:00:30]} Rd4 {[%emt 0:00:30]} 44. Re8 {[%emt 0:00:30]} Kg5 {[%emt 0:00:30]} 45. Re6 {[%emt 0:00:30]} h5 {[%emt 0:00:30]} 46. b3 {[%emt 0:00:30]} b4 {[%emt 0:00:30]} 47. Rxa6 {[%emt 0:00:30]} Rxe4 {[%emt 0:00:30]} 48. Rd6 {[%emt 0:00:30]} h4 {[%emt 0:00:30]} 49. Rd2 {[%emt 0:00:30]} h3 {[%emt 0:00:30]} 50. Kd3 {[%emt 0:00:30]} Re8 {[%emt 0:00:30]} 51. Kc4 {[%emt 0:00:30]} Re4+ {[%emt 0:00:30]} 52. Kd3 {[%emt 0:00:30]} Re8 {[%emt 0:00:30]} 53. Re2 {[%emt 0:00:30]} Rb8 {[%emt 0:00:30]} 54. Kc4 {[%emt 0:00:30]} Kf4 {[%emt 0:00:30]} 55. Kd3 {[%emt 0:00:30]} Kf3 {[%emt 0:00:30]} 56. Re7 {[%emt 0:00:30]} Kg2 {[%emt 0:00:30]} 57. Re2+ {[%emt 0:00:30]} Kf1 {[%emt 0:00:30]} 58. Re3 {[%emt 0:00:30]} Kg2 {[%emt 0:00:30]} 59. Re2+ {[%emt 0:00:30]} Kg1 {[%emt 0:00:30]} 60. Kc4 {[%emt 0:00:30]} Rb7 {[%emt 0:00:30]} 61. Rd2 {[%emt 0:00:30]} 1/2-1/2

[Event "6th Uppsala Young Champions 2019"]
[Site "Uppsala"]
[Date "2019.10.30"]
[Round "9.1"]
[White "Roshka, Yevgeniy"]
[Black "Pantzar, Milton"]
[Result "1/2-1/2"]
[ECO "D79"]
[WhiteElo "2369"]
[BlackElo "2376"]
[Annotator "NA"]
[PlyCount "59"]
[EventDate "2019.10.25"]
[EventType "swiss"]
[EventCountry "SWE"]
[SourceTitle "playchess.com"]
[Source "ChessBase"]
[SourceQuality "1"]
[TimeControl "5400+30"]

1. Nf3 {[%emt 0:07:01]} d5 {[%emt 0:00:00]} 2. g3 {[%emt 0:04:33]} g6 {[%emt 0:00:42]} 3. c4 {[%emt 0:02:04]} c6 {[%emt 0:01:04]} 4. Bg2 {[%emt 0:01:55]} Nf6 {[%emt 0:00:37]} 5. cxd5 {[%emt 0:00:38]} cxd5 {[%emt 0:00:04]} 6. d4 {[%emt 0:00:13]} Bg7 {[%emt 0:00:16]} 7. O-O {[%emt 0:00:02]} O-O {[%emt 0:00:14]} 8. Nc3 {[%emt 0:00:03]} Ne4 {[%emt 0:01:20]} 9. Nxe4 {[%emt 0:04:48]} dxe4 {[%emt 0:00:04]} 10. Ne5 {[%emt 0:00:02]} Bf5 {[%emt 0:01:54]} 11. g4 {[%emt 0:09:17]} Bxe5 {[%emt 0:07:07]} 12. dxe5 {[%emt 0:00:14]} Bxg4 {[%emt 0:03:15]} 13. Bh6 {[%emt 0:00:55]} Qxd1 {[%emt 0:20:22]} 14. Rfxd1 {[%emt 0:00:14]} Rc8 {[%emt 0:00:20]} 15. Bxe4 {[%emt 0:00:32]} Nc6 {[%emt 0:00:10]} 16. f3 {[%emt 0:00:37]} Be6 {[%emt 0:00:58]} 17. Rd2 {[%emt 0:04:27]} Rd8 {[%emt 0:02:29]} 18. Bxc6 {[%emt 0:00:45]} Rxd2 {[%emt 0:02:55]} 19. Bxd2 {[%emt 0:00:03]} bxc6 {[%emt 0:00:05]} 20. Rc1 {[%emt 0:00:09]} Rc8 {[%emt 0:02:16]} 21. Rc5 {[%emt 0:03:20]} a6 {[%emt 0:03:14]} 22. a3 {[%emt 0:00:41]} f6 {[%emt 0:00:50]} 23. exf6 {[%emt 0:00:18]} exf6 {[%emt 0:00:04]} 24. Kf2 {[%emt 0:00:08]} Kf7 {[%emt 0:00:39]} 25. Ra5 {[%emt 0:00:17]} Ra8 {[%emt 0:00:30]} 26. Rc5 {[%emt 0:00:09]} Rc8 {[%emt 0:00:04]} 27. Ra5 {[%emt 0:01:05]} Ra8 {[%emt 0:00:06]} 28. Rc5 {[%emt 0:00:02]} Rc8 {[%emt 0:00:04]} 29. Ra5 {[%emt 0:00:54]} Ra8 {[%emt 0:00:05]} 30. Rc5 {[%emt 0:00:04]} 1/2-1/2

[Event "6th Uppsala Young Champions 2019"]
[Site "Uppsala"]
[Date "2019.10.30"]
[Round "9.2"]
[White "Mihajlov, Sebastian"]
[Black "Thorhallsson, Simon"]
[Result "1-0"]
[ECO "E73"]
[WhiteElo "2387"]
[BlackElo "2190"]
[Annotator "NA"]
[PlyCount "63"]
[EventDate "2019.10.25"]
[EventType "swiss"]
[EventCountry "SWE"]
[SourceTitle "playchess.com"]
[Source "ChessBase"]
[SourceQuality "1"]
[TimeControl "5400+30"]

1. d4 {[%emt 0:08:13]} Nf6 {[%emt 0:00:00]} 2. c4 {[%emt 0:00:04]} g6 {[%emt 0:00:00]} 3. Nc3 {[%emt 0:00:03]} Bg7 {[%emt 0:00:04]} 4. e4 {[%emt 0:00:03]} d6 {[%emt 0:00:04]} 5. Be3 {[%emt 0:00:03]} O-O {[%emt 0:00:16]} 6. Be2 {[%emt 0:00:06]} c5 {[%emt 0:00:25]} 7. d5 {[%emt 0:00:05]} e6 {[%emt 0:00:08]} 8. Nf3 {[%emt 0:00:02]} exd5 {[%emt 0:00:10]} 9. cxd5 {[%emt 0:00:04]} a6 {[%emt 0:01:29]} 10. a4 {[%emt 0:00:24]} Ng4 {[%emt 0:02:05]} 11. Bg5 {[%emt 0:01:22]} Bf6 {[%emt 0:01:20]} 12. Bf4 {[%emt 0:01:15]} Qe7 {[%emt 0:01:09]} 13. Nd2 {[%emt 0:02:01]} Ne5 {[%emt 0:04:22]} 14. O-O {[%emt 0:00:09]} Bg7 {[%emt 0:01:59]} 15. Bg3 {[%emt 0:02:45]} f5 {[%emt 0:00:58]} 16. f4 {[%emt 0:00:44]} Nf7 {[%emt 0:02:15]} 17. Re1 {[%emt 0:13:10]} Nd7 {[%emt 0:07:28]} 18. exf5 {[%emt 0:01:05]} Bxc3 {[%emt 0:01:34]} 19. bxc3 {[%emt 0:00:16]} Qe3+ {[%emt 0:00:46]} 20. Kh1 {[%emt 0:00:28]} Qxc3 {[%emt 0:00:22]} 21. Ne4 {[%emt 0:03:28]} Qg7 {[%emt 0:00:19]} 22. fxg6 {[%emt 0:00:10]} hxg6 {[%emt 0:00:14]} 23. Bh4 {[%emt 0:05:41]} Nh6 {[%emt 0:02:32]} 24. Bg5 {[%emt 0:01:40]} Nf5 {[%emt 0:00:14]} 25. Bg4 {[%emt 0:00:04]} Nb6 {[%emt 0:01:06]} 26. Qb3 {[%emt 0:01:03]} Nd4 {[%emt 0:01:16]} 27. Qxb6 {[%emt 0:00:04]} Bxg4 {[%emt 0:00:06]} 28. Qxd6 {[%emt 0:01:08]} Nc2 {[%emt 0:02:46]} 29. Nf6+ {[%emt 0:00:17]} Kh8 {[%emt 0:01:33]} 30. Nxg4 {[%emt 0:00:16]} Nxa1 {[%emt 0:00:22]} 31. Re7 {[%emt 0:03:42]} Rae8 {[%emt 0:00:45]} 32. Bf6 {[%emt 0:00:18]} 1-0

[Event "6th Uppsala Young Champions 2019"]
[Site "Uppsala"]
[Date "2019.10.30"]
[Round "9.3"]
[White "Sorensen, Hampus"]
[Black "Storme, Isak"]
[Result "1-0"]
[ECO "E09"]
[WhiteElo "2330"]
[BlackElo "2244"]
[Annotator "NA"]
[PlyCount "103"]
[EventDate "2019.10.25"]
[EventType "swiss"]
[EventCountry "SWE"]
[SourceTitle "playchess.com"]
[Source "ChessBase"]
[SourceQuality "1"]
[TimeControl "5400+30"]

1. d4 {[%emt 0:12:03]} e6 {[%emt 0:13:03]} 2. c4 {[%emt 0:00:30]} d5 {[%emt 0:00:30]} 3. Nf3 {[%emt 0:00:30]} c6 {[%emt 0:00:30]} 4. Nbd2 {[%emt 0:00:30]} Nf6 {[%emt 0:00:30]} 5. g3 {[%emt 0:00:30]} Be7 {[%emt 0:00:30]} 6. Bg2 {[%emt 0:00:30]} O-O {[%emt 0:00:30]} 7. O-O {[%emt 0:00:30]} b6 {[%emt 0:00:30]} 8. Qc2 {[%emt 0:00:30]} Bb7 {[%emt 0:00:30]} 9. e4 {[%emt 0:00:30]} Nbd7 {[%emt 0:00:30]} 10. e5 {[%emt 0:00:30]} Ne8 {[%emt 0:00:30]} 11. cxd5 {[%emt 0:00:30]} cxd5 {[%emt 0:00:30]} 12. Re1 {[%emt 0:00:30]} Rc8 {[%emt 0:00:30]} 13. Qa4 {[%emt 0:00:30]} Nc7 {[%emt 0:00:30]} 14. Nf1 {[%emt 0:00:30]} Ba6 {[%emt 0:00:30]} 15. h4 {[%emt 0:00:30]} Bd3 {[%emt 0:00:30]} 16. Bg5 {[%emt 0:00:30]} b5 {[%emt 0:00:30]} 17. Qd1 {[%emt 0:00:30]} Be4 {[%emt 0:00:30]} 18. N1d2 {[%emt 0:00:30]} Bf5 {[%emt 0:00:30]} 19. Rc1 {[%emt 0:00:30]} f6 {[%emt 0:00:30]} 20. Bf4 {[%emt 0:00:30]} g5 {[%emt 0:00:30]} 21. exf6 {[%emt 0:00:30]} gxf4 {[%emt 0:00:30]} 22. fxe7 {[%emt 0:00:30]} Qxe7 {[%emt 0:00:30]} 23. Ne5 {[%emt 0:00:30]} Nxe5 {[%emt 0:00:30]} 24. Rxe5 {[%emt 0:00:30]} Qg7 {[%emt 0:00:30]} 25. Kh2 {[%emt 0:00:30]} Kh8 {[%emt 0:00:30]} 26. Bh3 {[%emt 0:00:30]} Rg8 {[%emt 0:00:30]} 27. g4 {[%emt 0:00:30]} Bxg4 {[%emt 0:00:30]} 28. Bxg4 {[%emt 0:00:30]} Qxg4 {[%emt 0:00:30]} 29. Qxg4 {[%emt 0:00:30]} Rxg4 {[%emt 0:00:30]} 30. Nf3 {[%emt 0:00:30]} Rg7 {[%emt 0:00:30]} 31. Rg5 {[%emt 0:00:30]} Rcg8 {[%emt 0:00:30]} 32. Rc6 {[%emt 0:00:30]} h6 {[%emt 0:00:30]} 33. Rxg7 {[%emt 0:00:30]} Rxg7 {[%emt 0:00:30]} 34. Ne5 {[%emt 0:00:30]} Kg8 {[%emt 0:00:30]} 35. h5 {[%emt 0:00:30]} Kf8 {[%emt 0:00:30]} 36. Ng6+ {[%emt 0:00:30]} Ke8 {[%emt 0:00:30]} 37. Nxf4 {[%emt 0:00:30]} Re7 {[%emt 0:00:30]} 38. Ng6 {[%emt 0:00:30]} Rg7 {[%emt 0:00:30]} 39. a3 {[%emt 0:00:30]} Kd7 {[%emt 0:00:30]} 40. Ne5+ {[%emt 0:00:30]} Kc8 {[%emt 0:00:30]} 41. f4 {[%emt 0:00:30]} Rg8 {[%emt 0:00:30]} 42. f5 {[%emt 0:00:30]} exf5 {[%emt 0:00:30]} 43. Rxh6 {[%emt 0:00:30]} Ne8 {[%emt 0:00:30]} 44. Re6 {[%emt 0:00:30]} Rh8 {[%emt 0:00:30]} 45. h6 {[%emt 0:00:30]} Ng7 {[%emt 0:00:30]} 46. Rg6 {[%emt 0:00:30]} Nh5 {[%emt 0:00:30]} 47. Nf7 {[%emt 0:00:30]} Rh7 {[%emt 0:00:30]} 48. Ng5 {[%emt 0:00:30]} Re7 {[%emt 0:00:30]} 49. h7 {[%emt 0:00:30]} Re2+ {[%emt 0:00:30]} 50. Kg1 {[%emt 0:00:30]} Re1+ {[%emt 0:00:30]} 51. Kf2 {[%emt 0:00:30]} Re2+ {[%emt 0:00:30]} 52. Kf3 {[%emt 0:00:30]} 1-0

[Event "6th Uppsala Young Champions 2019"]
[Site "Uppsala"]
[Date "2019.10.30"]
[Round "9.4"]
[White "Abdrlauf, Elham"]
[Black "Berglind, Axel"]
[Result "0-1"]
[ECO "B88"]
[WhiteElo "2213"]
[BlackElo "2062"]
[Annotator "NA"]
[PlyCount "104"]
[EventDate "2019.10.25"]
[EventType "swiss"]
[EventCountry "SWE"]
[SourceTitle "playchess.com"]
[Source "ChessBase"]
[SourceQuality "1"]
[TimeControl "5400+30"]

1. e4 {[%emt 0:25:33]} c5 {[%emt 0:00:00]} 2. Nf3 {[%emt 0:00:25]} d6 {[%emt 0:00:00]} 3. d4 {[%emt 0:00:05]} cxd4 {[%emt 0:00:00]} 4. Nxd4 {[%emt 0:00:04]} Nf6 {[%emt 0:00:00]} 5. Nc3 {[%emt 0:00:06]} a6 {[%emt 0:00:00]} 6. Bc4 {[%emt 0:00:02]} e6 {[%emt 0:00:49]} 7. Bb3 {[%emt 0:00:04]} Be7 {[%emt 0:00:04]} 8. f4 {[%emt 0:00:13]} O-O {[%emt 0:00:24]} 9. Qf3 {[%emt 0:00:50]} Nc6 {[%emt 0:00:44]} 10. Be3 {[%emt 0:01:59]} Bd7 {[%emt 0:00:11]} 11. f5 {[%emt 0:03:15]} Ne5 {[%emt 0:02:07]} 12. Qe2 {[%emt 0:00:45]} exf5 {[%emt 0:01:46]} 13. Nxf5 {[%emt 0:02:49]} Bxf5 {[%emt 0:00:39]} 14. exf5 {[%emt 0:00:03]} Rc8 {[%emt 0:02:09]} 15. O-O-O {[%emt 0:04:46]} Re8 {[%emt 0:06:16]} 16. h3 {[%emt 0:04:00]} Qa5 {[%emt 0:06:01]} 17. g4 {[%emt 0:05:09]} Rxc3 {[%emt 0:01:14]} 18. bxc3 {[%emt 0:00:57]} Ne4 {[%emt 0:00:51]} 19. Bd4 {[%emt 0:01:14]} Nxc3 {[%emt 0:02:16]} 20. Bxc3 {[%emt 0:00:36]} Qxc3 {[%emt 0:00:06]} 21. Kb1 {[%emt 0:00:42]} b5 {[%emt 0:09:48]} 22. Qd2 {[%emt 0:03:08]} Qc7 {[%emt 0:00:35]} 23. g5 {[%emt 0:04:19]} Nc4 {[%emt 0:05:29]} 24. Bxc4 {[%emt 0:00:19]} bxc4 {[%emt 0:00:05]} 25. c3 {[%emt 0:00:05]} Qa5 {[%emt 0:03:53]} 26. Ka1 {[%emt 0:06:23]} Bxg5 {[%emt 0:00:26]} 27. Rhe1 {[%emt 0:03:06]} Rxe1 {[%emt 0:01:05]} 28. Qxe1 {[%emt 0:06:18]} h6 {[%emt 0:00:11]} 29. f6 {[%emt 0:07:51]} Bxf6 {[%emt 0:00:24]} 30. Qe8+ {[%emt 0:00:00]} Kh7 {[%emt 0:00:11]} 31. Qe4+ {[%emt 0:00:01]} g6 {[%emt 0:07:47]} 32. Qxc4 {[%emt 0:00:09]} Bxc3+ {[%emt 0:01:07]} 33. Kb1 {[%emt 0:00:04]} Qb4+ {[%emt 0:00:13]} 34. Qxb4 {[%emt 0:00:01]} Bxb4 {[%emt 0:00:06]} 35. Kc2 {[%emt 0:00:33]} f5 {[%emt 0:00:58]} 36. Kb3 {[%emt 0:02:36]} a5 {[%emt 0:01:20]} 37. Kc4 {[%emt 0:04:49]} g5 {[%emt 0:02:07]} 38. Kd3 {[%emt 0:02:12]} Kg6 {[%emt 0:00:45]} 39. Ke2 {[%emt 0:00:02]} h5 {[%emt 0:01:05]} 40. Kf3 {[%emt 0:00:34]} Kf6 {[%emt 0:01:56]} 41. h4 {[%emt 0:01:20]} g4+ {[%emt 0:01:22]} 42. Kf4 {[%emt 0:00:02]} Ba3 {[%emt 0:00:10]} 43. Rd5 {[%emt 0:01:17]} Bc1+ {[%emt 0:00:04]} 44. Kg3 {[%emt 0:00:01]} Ke6 {[%emt 0:15:39]} 45. Rxa5 {[%emt 0:00:28]} f4+ {[%emt 0:01:09]} 46. Kg2 {[%emt 0:02:40]} f3+ {[%emt 0:00:32]} 47. Kf2 {[%emt 0:02:09]} d5 {[%emt 0:00:43]} 48. a4 {[%emt 0:00:51]} d4 {[%emt 0:01:22]} 49. Rxh5 {[%emt 0:00:20]} Be3+ {[%emt 0:00:04]} 50. Kg3 {[%emt 0:00:02]} d3 {[%emt 0:00:25]} 51. Rh8 {[%emt 0:00:15]} Bf4+ {[%emt 0:00:25]} 52. Kf2 {[%emt 0:00:01]} d2 {[%emt 0:00:13]} 0-1

[Event "6th Uppsala Young Champions 2019"]
[Site "Uppsala"]
[Date "2019.10.30"]
[Round "9.5"]
[White "Crevatin, Leo"]
[Black "Nilsson, Joakim"]
[Result "1/2-1/2"]
[ECO "E14"]
[WhiteElo "2221"]
[BlackElo "2305"]
[Annotator "NA"]
[PlyCount "64"]
[EventDate "2019.10.25"]
[EventType "swiss"]
[EventCountry "SWE"]
[SourceTitle "playchess.com"]
[Source "ChessBase"]
[SourceQuality "1"]
[TimeControl "5400+30"]

1. d4 {[%emt 1:30:30]} d5 {[%emt 1:30:30]} 2. c4 {[%emt 0:00:30]} e6 {[%emt 0:00:30]} 3. Nf3 {[%emt 0:00:30]} Nf6 {[%emt 0:00:30]} 4. e3 {[%emt 0:00:30]} Be7 {[%emt 0:00:30]} 5. b3 {[%emt 0:00:30]} O-O {[%emt 0:00:30]} 6. Bb2 {[%emt 0:00:30]} b6 {[%emt 0:00:30]} 7. Bd3 {[%emt 0:00:30]} Bb7 {[%emt 0:00:30]} 8. O-O {[%emt 0:00:30]} Nbd7 {[%emt 0:00:30]} 9. Nbd2 {[%emt 0:00:30]} c5 {[%emt 0:00:30]} 10. Rc1 {[%emt 0:00:30]} Rc8 {[%emt 0:00:30]} 11. Qe2 {[%emt 0:00:30]} dxc4 {[%emt 0:00:30]} 12. Bxc4 {[%emt 0:00:30]} Ne4 {[%emt 0:00:30]} 13. Nxe4 Bxe4 14. Rfd1 {[%emt 0:01:00]} Qc7 {[%emt 0:01:00]} 15. dxc5 {[%emt 0:00:30]} bxc5 {[%emt 0:00:30]} 16. Bd3 {[%emt 0:00:30]} Bxd3 {[%emt 0:00:30]} 17. Qxd3 {[%emt 0:00:30]} Rfd8 {[%emt 0:00:30]} 18. Qc2 {[%emt 0:00:30]} Bf6 {[%emt 0:00:30]} 19. h3 {[%emt 0:00:30]} h6 {[%emt 0:00:30]} 20. Bxf6 {[%emt 0:00:30]} Nxf6 {[%emt 0:00:30]} 21. Rxd8+ {[%emt 0:00:30]} Qxd8 {[%emt 0:00:30]} 22. Rd1 {[%emt 0:00:30]} Qa5 {[%emt 0:00:30]} 23. Ne5 {[%emt 0:00:30]} Nd5 {[%emt 0:00:30]} 24. Nc4 {[%emt 0:00:30]} Qc7 {[%emt 0:00:30]} 25. Qd2 {[%emt 0:00:30]} Nb6 {[%emt 0:00:30]} 26. Nxb6 {[%emt 0:00:30]} axb6 {[%emt 0:00:30]} 27. Qd7 {[%emt 0:00:30]} c4 {[%emt 0:00:30]} 28. Qxc7 {[%emt 0:00:30]} Rxc7 {[%emt 0:00:30]} 29. bxc4 {[%emt 0:00:30]} Rxc4 {[%emt 0:00:30]} 30. Rd8+ {[%emt 0:00:30]} Kh7 {[%emt 0:00:30]} 31. Rb8 {[%emt 0:00:30]} Ra4 {[%emt 0:00:30]} 32. Rxb6 {[%emt 0:00:30]} Rxa2 {[%emt 0:00:30]} 1/2-1/2